Cogmind - Beta 9.6 @@@ ROGUE MODE // 2020.05.14 @ 22:59:53 Player: TheGreatBorealis Result: Destroyed by S-27 Virus with Autogun Performance ------------- Evolutions (4) 2000 Regions Visited (6) 1200 Robots Destroyed (23) 115 Value Destroyed (532) 532 Prototype IDs (2) 40 Alien Tech Used (0) 0 Bonus (0) 0 TOTAL SCORE: 3887 Bonus ------- None Cogmind --------- Core Integrity 0/850 Matter 230/300 Energy 25/100 System Corruption 2% Temperature Cool (6) Movement Core (50) Location -6/Factory Parts ------- > --- POWER (3) -------- (None) > --- PROPULSION (4) --- Faulty Biomechanical Wings Biomechanical Wings > --- UTILITY (5) ------ Advanced Targeting Computer Cloaking Device System Backup Module > --- WEAPON (3) ------- (None) > --- INVENTORY (4) ---- Particle Charger Peak State ------------ > --- POWER ------------ (None) > --- PROPULSION ------- Gravmag Array Biomechanical Wings Biomechanical Wings > --- UTILITY ---------- Advanced Targeting Computer Cloaking Device System Backup Module > --- WEAPON ----------- Heavy Laser > --- INVENTORY -------- Particle Charger [Rating: 38] Favorites ----------- Power Cooled Deuterium Engine Engine Cooled Deuterium Engine Propulsion Compact Wheel Leg Improved Carbon-fiber Leg Wheel Compact Wheel Hover Unit Gravmag System Flight Unit Flight Unit Utility Advanced Targeting Computer Device Structural Scanner Storage Small Storage Unit Processor Advanced Targeting Computer Protection Hardened Light Armor Plating Weapon Pulse Rifle Energy Gun Pulse Rifle Energy Cannon Heavy Plasma Cannon Ballistic Gun Assault Rifle Build | -11 -10 -9 -9 -8 -7 -6 ------- Run | Scr Mat Mat Min Mat Fac Fac Slots Evolved 8 | . . 2 . 2 2 2 Power 2 | . . 1 . . . 1 Propulsion 2 | . . 1 . . 1 . Utility 3 | . . . . 1 1 1 Weapon 1 | . . . . 1 . . Parts Attached 56 | 6 2 7 . 12 17 12 Power 9 | 1 . 1 . 2 4 1 Engine 9 | 1 . 1 . 2 4 1 Core . | . . . . . . . Reactor . | . . . . . . . Propulsion 16 | 2 . 3 . 1 6 4 Treads . | . . . . . . . Leg 1 | . . . . . 1 . Wheel 7 | 2 . . . . 5 . Hover 2 | . . . . . . 2 Flight 6 | . . 3 . 1 . 2 Utility 10 | 1 1 . . 4 2 2 Device 6 | . 1 . . 2 1 2 Storage 1 | 1 . . . . . . Processor 2 | . . . . 2 . . Hackware . | . . . . . . . Protection 1 | . . . . . 1 . Artifact . | . . . . . . . Weapon 21 | 2 1 3 . 5 5 5 Energy Gun 9 | 1 1 . . . 3 4 Energy Cannon 1 | . . . . . . 1 Ballistic Gun 11 | 1 . 3 . 5 2 . Ballistic Cannon . | . . . . . . . Launcher . | . . . . . . . Special Weapon . | . . . . . . . Impact Weapon . | . . . . . . . Slashing Weapon . | . . . . . . . Piercing Weapon . | . . . . . . . Special Melee Weapon . | . . . . . . . Unidentified Prototypes 2 | . . . . . 1 1 Parts Lost 27 | . 2 1 . 5 12 7 Power 5 | . . 1 . 1 3 . Propulsion 10 | . 1 . . 3 4 2 Utility 3 | . . . . . 2 1 Weapon 9 | . 1 . . 1 3 4 Highest Loss Streak 12 | . 2 1 . 4 12 3 Average Slot Usage (%) 73 | . 96 71 77 80 82 29 Engine 12 | . 14 17 11 14 14 . Leg 1 | . . . . . 3 . Wheel 13 | . 26 7 . . 20 . Flight 7 | . . 12 33 24 . 9 Device 7 | . 12 11 11 9 6 1 Storage 1 | . 14 . . . . . Processor 11 | . . . . 16 15 11 Protection 2 | . . . . . 4 . Energy Gun 7 | . 24 3 . . 10 1 Ballistic Gun 6 | . 2 17 22 15 4 . Naked Turns . | . . . . . . . Heaviest Build 38 | 10 12 10 6 12 38 6 Greatest Support 64 | 20 20 12 12 14 64 28 Greatest Overweight (x) 2 | . . 2 . . . . Average Overweight (x) . | . . . . . . . Largest Inventory Capacity 6 | 6 6 6 4 4 4 4 Average Capacity 4 | 5 6 4 4 4 4 4 Most Carried 4 | 4 3 4 3 4 4 4 Average Carried 3 | 1 2 3 3 3 3 2 Final Capacity 6 | 6 6 4 4 4 4 4 Final Carried 3 | 1 3 3 3 3 3 1 Class Distribution -------------------- 58% | Mutant 28% | Gunner 7% | Scavenger-Mutant 5% | Scavenger-Gunner Dominant Class ---------------- Mutant | -10/Materials Mutant | -9/Materials Scavenger-Mutant | -9/Mines Mutant | -8/Materials Gunner | -7/Factory Mutant | -6/Factory Resources | -11 -10 -9 -9 -8 -7 -6 ----------- Run | Scr Mat Mat Min Mat Fac Fac Matter Collected 703 | 183 . 15 . 111 394 . Remotely . | . . . . . . . Salvage Created 708 | . 36 93 . 111 468 . Parts 54 | . 4 11 . 9 30 . Haulers Intercepted . | . . . . . . . Recyclers Shooed 2 | . . 1 . 1 . . Parts Field Recycled . | . . . . . . . Retrieved Matter . | . . . . . . . Parts Self-Destructed . | . . . . . . . Prevented . | . . . . . . . Kills | -11 -10 -9 -9 -8 -7 -6 ------- Run | Scr Mat Mat Min Mat Fac Fac Combat Hostiles Destroyed 15 | . 1 4 . 3 7 . Guns 14 | . . 4 . 3 7 . AOE 1 | . 1 . . . . . Classes Destroyed 7 | . 2 2 . 1 2 . Worker 1 | . 1 . . . . . Builder 2 | . . . . . 2 . Recycler 3 | . . . . 1 2 . Watcher 2 | . . 1 . . 1 . Swarmer 9 | . . 4 . 3 2 . Grunt 3 | . 1 . . . 2 . Programmer 3 | . . . . . 3 . Best Kill Streak 3 | . 2 3 . 3 3 . Combat Bots Only 3 | . 1 2 . 3 2 . Max Kills in Single Turn 2 | . 2 1 . 1 2 . Gunslinging . | . . . . . . . Exploded 1 | . 1 . . . . . Melee . | . . . . . . . Uniques/NPCs Destroyed . | . . . . . . . Combat | -11 -10 -9 -9 -8 -7 -6 -------- Run | Scr Mat Mat Min Mat Fac Fac Damage Taken 3227 | . 221 82 11 295 1261 1357 Core 1401 | . 63 23 . 70 395 850 Absorbed by Shields . | . . . . . . . Core Remaining (%) 79 | 100 74 . 94 87 43 . Volleys Fired 56 | . 2 9 . 15 24 6 Largest 3 | . 2 2 . 3 3 2 Hottest 206 | . 80 60 . 60 206 143 Shots Fired 129 | . 4 18 . 31 69 7 Gun 129 | . 4 18 . 31 69 7 Cannon . | . . . . . . . Launcher . | . . . . . . . Special . | . . . . . . . Kinetic 61 | . . 15 . 31 15 . Thermal 61 | . . . . . 54 7 Explosive . | . . . . . . . Electromagnetic 7 | . 4 3 . . . . Robot Hit Streak 17 | . 1 5 . 5 17 3 Robot Miss Streak 4 | . 1 1 . 4 3 2 Penetration Max . | . . . . . . . Secondary Targets . | . . . . . . . Shots Hit Robots 85 | . 2 14 . 18 46 5 Core Hits 43 | . 3 8 . 8 22 2 Critical Hits 1 | . . . . 1 . . Critical Kills . | . . . . . . . Critical Parts Destroyed 1 | . . . . 1 . . Melee Attacks . | . . . . . . . Impact . | . . . . . . . Slashing . | . . . . . . . Piercing . | . . . . . . . Sneak Attacks . | . . . . . . . Combat Hostiles . | . . . . . . . Follow-up Attacks . | . . . . . . . Damage Inflicted 1776 | . 568 98 . 162 849 99 Guns 1234 | . 39 98 . 162 846 89 Cannons . | . . . . . . . Explosions 529 | . 529 . . . . . Melee . | . . . . . . . Ramming 13 | . . . . . 3 10 Kinetic 353 | . . 74 . 162 117 . Thermal 1347 | . 529 . . . 729 89 Explosive . | . . . . . . . Electromagnetic 63 | . 39 24 . . . . Impact . | . . . . . . . Slashing . | . . . . . . . Piercing . | . . . . . . . Highest Corruption 3 | . . . . . 3 2 Average Corruption 1 | . . . . . 1 1 Corruption Purged . | . . . . . . . Effects 6 | . . . . . 5 1 Message Errors 2 | . . . . . 1 1 Energy Discharges 2 | . . . . . 2 . Data Loss (minor) 1 | . . . . . 1 . Targeting Errors 1 | . . . . . 1 . Overload Shots . | . . . . . . . Overflow Damage 172 | . 172 . . . . . Projectiles . | . . . . . . . Explosions 172 | . 172 . . . . . Melee . | . . . . . . . Knockbacks . | . . . . . . . Impact . | . . . . . . . Kinetic . | . . . . . . . Secondary . | . . . . . . . Self-Inflicted Damage 177 | . 171 . . . 1 5 Shots 3 | . 3 . . . . . Rammed 5 | . . . . . 1 4 Targets Rammed 5 | . . . . . 1 4 Kicked . | . . . . . . . Crushed . | . . . . . . . Highest Temperature 340 | . 84 36 . 57 340 164 Average Temperature 90 | . 43 12 . 21 126 55 Received Heat Transfer 405 | . 27 . . 45 243 90 Effects 1 | . . . . . 1 . Damage (minor) 1 | . . . . . 1 . Siege Activations . | . . . . . . . Robots Corrupted . | . . . . . . . Combat Hostiles . | . . . . . . . Parts Fried . | . . . . . . . Impact Corruptions . | . . . . . . . Robots Melted . | . . . . . . . Combat Hostiles . | . . . . . . . Parts Melted 2 | . . . . . 2 . Heat Transferred 2068 | . 400 . . . 1483 185 Parts Sabotaged . | . . . . . . . Parts Stolen . | . . . . . . . Parts Stripped . | . . . . . . . Power Chain Reactions 1 | . 1 . . . . . Missiles Intercepted . | . . . . . . . Alert | -11 -10 -9 -9 -8 -7 -6 ------- Run | Scr Mat Mat Min Mat Fac Fac Peak Influence 180 | . 80 180 85 157 142 52 Average Influence 58 | . 18 93 73 96 57 30 Maximum Alert Level . | . . . . . . . Low Security (%) 100 | 100 100 100 100 100 100 100 Level 1 . | . . . . . . . Level 2 . | . . . . . . . Level 3 . | . . . . . . . Level 4 . | . . . . . . . Level 5 . | . . . . . . . High Security . | . . . . . . . Max Security . | . . . . . . . Squads Dispatched 10 | . . . . 4 6 . Investigation 1 | . . . . 1 . . Extermination 2 | . . . . . 2 . Reinforcement 6 | . . . . 3 3 . Assault . | . . . . . . . Garrison 1 | . . . . . 1 . Intercept . | . . . . . . . Construction Impeded 1 | . . . . . 1 . Haulers Reinforced 1 | . . . . . 1 . Stealth | -11 -10 -9 -9 -8 -7 -6 --------- Run | Scr Mat Mat Min Mat Fac Fac Distress Signals 4 | . 1 . . 2 . 1 Communications Jammed . | . . . . . . . Distress Signals . | . . . . . . . Times Spotted 87 | . 4 12 4 26 14 27 Peak Tracking Total 16 | . 3 6 5 16 4 12 Tactical Retreats 11 | . 1 2 . 2 . 6 Traps | -11 -10 -9 -9 -8 -7 -6 ------- Run | Scr Mat Mat Min Mat Fac Fac Traps Triggered 2 | . . . . 1 1 . Indirectly . | . . . . . . . Trap Hack Attempts . | . . . . . . . Triggered . | . . . . . . . Disarmed . | . . . . . . . Reprogrammed . | . . . . . . . Reused . | . . . . . . . Traps Extracted . | . . . . . . . Installed . | . . . . . . . Triggered . | . . . . . . . Machines | -11 -10 -9 -9 -8 -7 -6 ---------- Run | Scr Mat Mat Min Mat Fac Fac Machines Disabled 3 | . 3 . . . . . Max in Single Turn 3 | . 3 . . . . . Machines Sabotaged . | . . . . . . . Garrisons Compromised . | . . . . . . . Overloaded Fab Kills . | . . . . . . . Fab Network Shutdowns . | . . . . . . . Hacking | -11 -10 -9 -9 -8 -7 -6 --------- Run | Scr Mat Mat Min Mat Fac Fac Machines Accessed . | . . . . . . . Terminals . | . . . . . . . Fabricators . | . . . . . . . Repair Stations . | . . . . . . . Recycling Units . | . . . . . . . Scanalyzers . | . . . . . . . Garrison Access . | . . . . . . . Total Hacks . | . . . . . . . Successful . | . . . . . . . Failed . | . . . . . . . Catastrophic . | . . . . . . . Database Lockouts . | . . . . . . . Manual . | . . . . . . . Terminals . | . . . . . . . Fabricators . | . . . . . . . Repair Stations . | . . . . . . . Recycling Units . | . . . . . . . Scanalyzers . | . . . . . . . Garrison Access . | . . . . . . . Terminal Hacks . | . . . . . . . Fabricator Hacks . | . . . . . . . Repair Station Hacks . | . . . . . . . Recycling Unit Hacks . | . . . . . . . Scanalyzer . | . . . . . . . Garrison Access Hacks . | . . . . . . . Unauthorized Hacks . | . . . . . . . Terminals . | . . . . . . . Fabricators . | . . . . . . . Repair Stations . | . . . . . . . Recycling Units . | . . . . . . . Scanalyzers . | . . . . . . . Garrison Access . | . . . . . . . Data Cores Recovered . | . . . . . . . Used . | . . . . . . . Hacking Detections . | . . . . . . . Full Trace Events . | . . . . . . . Feedback Events . | . . . . . . . Feedback Blocked . | . . . . . . . Robot Schematics Acquired . | . . . . . . . Robots Built . | . . . . . . . Matter . | . . . . . . . Time . | . . . . . . . Total Robot Build Rating . | . . . . . . . Part Schematics Acquired . | . . . . . . . Parts Built . | . . . . . . . Matter . | . . . . . . . Time . | . . . . . . . Total Part Build Rating . | . . . . . . . Parts Repaired . | . . . . . . . Time . | . . . . . . . Parts Recycled . | . . . . . . . Recycled Matter . | . . . . . . . Retrieved Matter . | . . . . . . . Retrieved Components . | . . . . . . . Parts Scanalyzed . | . . . . . . . Part Schematics Acquired . | . . . . . . . Parts Damaged . | . . . . . . . Bothacking | -11 -10 -9 -9 -8 -7 -6 ------------ Run | Scr Mat Mat Min Mat Fac Fac Used RIF Installer . | . . . . . . . Robots Hacked . | . . . . . . . Non-combat . | . . . . . . . Combat . | . . . . . . . Robot Hacks Applied . | . . . . . . . Relay Couplers Released . | . . . . . . . Robots Rewired . | . . . . . . . Allies Hacked . | . . . . . . . Hacks Repelled . | . . . . . . . Allies | -11 -10 -9 -9 -8 -7 -6 -------- Run | Scr Mat Mat Min Mat Fac Fac Total Allies 3 | . . . 3 . . . Largest Group 3 | . . . 3 . . . Highest-Rated Group 40 | . . . 40 . . . Highest-Rated Ally 16 | . . . 16 . . . Total Orders . | . . . . . . . Ally Attacks 11 | . . . 11 . . . Total Damage 83 | . . . 83 . . . Kills . | . . . . . . . Allies Corrupted . | . . . . . . . Allies Melted . | . . . . . . . Intel | -11 -10 -9 -9 -8 -7 -6 ------- Run | Scr Mat Mat Min Mat Fac Fac Robot Analysis Total . | . . . . . . . Derelict Logs Recovered 1 | . . . 1 . . . Drone Launches . | . . . . . . . Drone Recoveries . | . . . . . . . Exploration | -11 -10 -9 -9 -8 -7 -6 ------------- Run | Scr Mat Mat Min Mat Fac Fac Turns Passed 1645 | 47 109 123 51 246 825 244 Spaces Moved 2227 | 44 121 149 126 478 863 446 Core 12 | 1 . . . . 11 . Treads . | . . . . . . . Legs 40 | . . . . . 40 . Wheels 791 | 43 121 69 . . 558 . Hover 132 | . . . . . . 132 Flight 1252 | . . 80 126 478 254 314 Fastest Speed 34 | 50 80 34 34 34 40 40 Average Speed 60 | 79 80 56 34 35 81 45 Slowest Speed 205 | 80 80 205 37 40 120 60 Overloaded Moves . | . . . . . . . Propulsion Burnouts . | . . . . . . . Robots Hopped 12 | . . 3 1 2 . 6 Cave-ins Triggered . | . . . . . . . Exploration Rate (%) 24 | 4 30 23 32 41 20 19 Regions Visited 6 Branch Regions 1 Pre-discovered Areas . | . . . . . . . Known Exits Taken 2 | . . . . 1 1 . Unknown Exits Taken 4 | 1 1 1 1 . . . Scrap Searched . | . . . . . . . Spaces Dug . | . . . . . . . Terrain Destroyed 61 | . 61 . . . . . Melee . | . . . . . . . Projectile . | . . . . . . . AOE 61 | . 61 . . . . . Actions | -11 -10 -9 -9 -8 -7 -6 --------- Run | Scr Mat Mat Min Mat Fac Fac Total 2412 | 55 128 169 131 531 927 471 Wait 27 | . 1 . 7 12 7 . Move 2198 | 43 120 142 123 473 862 435 Hop 11 | . . 3 1 2 . 5 Pick Up 35 | 6 3 5 . 6 8 7 Fast Attach 16 | 1 . . . 4 8 3 Attach 33 | 5 1 5 . 7 6 9 Detach 6 | . . 1 . 4 1 . Swap 7 | . 1 2 . 1 3 . Drop 18 | . . 2 . 7 7 2 Fire 56 | . 2 9 . 15 24 6 Melee . | . . . . . . . Ram 5 | . . . . . 1 4 Kick . | . . . . . . . Crush . | . . . . . . . Escape Stasis . | . . . . . . . Rewire . | . . . . . . . Trap . | . . . . . . . Miscellaneous . | . . . . . . . Route ------- -11/Scrapyard -10/Materials -9/Materials -9/Mines -8/Materials (discovered 2 exits: *Fac / Sto) -7/Factory -6/Factory (discovered 1 exit: [*Fac]) History --------- Turn | Location | Event 20 | -11/Scrapyard | Discovered new exit (range 16) 48 | -11/Scrapyard | Entered Materials 126 | -10/Materials | Discovered new exit (range 15) 157 | -10/Materials | Entered another Materials area 157 | -9/Materials | Evolved 2 slots: Power x1, Propulsion x1 275 | -9/Materials | Discovered new exit (range 16) 280 | -9/Materials | Entered Mines 290 | -9/Mines | Assembled infested the area 296 | -9/Mines | Assisted by bots powering up and referring to "LRC-V3" 325 | -9/Mines | Discovered new exit (range 13) 331 | -9/Mines | Entered Materials 331 | -8/Materials | Evolved 2 slots: Utility x1, Weapon x1 332 | -8/Materials | Identified exit to Storage 569 | -8/Materials | Discovered new exit (range 16) 576 | -8/Materials | Identified exit to Factory 577 | -8/Materials | Entered Factory 577 | -7/Factory | Evolved 2 slots: Propulsion x1, Utility x1 598 | -7/Factory | Lost 4 parts (1p2n1w) 852 | -7/Factory | Build established: Mutant 1171 | -7/Factory | Build established: Gunner 1359 | -7/Factory | Garrison activated, responded to threat 1374 | -7/Factory | Discovered new exit (range 16) 1402 | -7/Factory | Identified exit to Factory 1402 | -7/Factory | Entered another Factory area 1402 | -6/Factory | Evolved 2 slots: Power x1, Utility x1 1427 | -6/Factory | Lost 12 parts (3p4n2u3w) 1588 | -6/Factory | Core integrity fell below 50% 1602 | -6/Factory | Core integrity fell below 20% 1614 | -6/Factory | Lost 3 parts (1u2w) 1641 | -6/Factory | Discovered new exit (range 11) 1646 | -6/Factory | Destroyed by S-27 Virus with Autogun Last Messages --------------- 01529_ Hvy. Laser destroyed. 01555_ Acquired Electrolaser. 01573_ Acquired Cloaking Device. 01574_ Acquired Gatling Laser. 01578_ Gatling Laser destroyed. 01582_ Electrolaser destroyed. 01583_ Adv. Signal Interpreter destroyed. 01587_ Chain reaction triggered in Imp. Ion Engine. 01588_ Acquired Angular Momentum Engine. 01589_ R-10 Processor destroyed. 01590_ Dropped Angular Momentum Engine. 01592_ U-05 Engineer lays Concrete. 01593_ TDAERW8HWFDOAVXMA81VH,F9CTB7KKU GG86WQ 01593_ K-01 Serf collects debris. 01593_ U-05 Engineer lays Concrete. 01614_ Acquired Gravmag Array. 01623_ Slammed into S-27 Virus. 01641_ EXIT=FOUND 01641_ Hvy. Laser destroyed. 01646_ Gravmag Array destroyed. Map ----- +----------------------------------------------------+ | #???????????????????????????????????? | | #????????????????? ?????????????????? | | #???????????????? #???????????????? | | #??????????????? #???????????????? | | #??????????????? #???????????????? | | ??????????????? #???????????????? | | ################ #???????????????? | | #???????????????? | | +???????????????? | | #???????????????? | | #???????????????? | | #???????????????? | | ######### ####???????????????????? | | #?????# #??????????????????????? | | " #?????# #??????????????????????? | | " #?????# #??????????????????????? | | " #?????# #??????????????????????? | | #?????# #??????????????????????? | | " #?????# #??????????????????????? | | " #?????# #??????????????????????? | | "???????# ########???????????????? | | ??????# #???????????????? | | #???????# #???????????????? | | ????????# #???????##??????? | | ????????# s ###### #??????? | | ????????# s ss @ Y< #??????? | | ???###### ####+#s######## #??????? | | ???# # #???##??????? | | ???# # #???????????? | | ???# # #???????????? | | ???# # #???????????? | | ???# # """ """ #???????????? | | ???# # """ """ #???????????? | | ??# # """ """ #???????????? | | "" # # #???????????? | | "" + + """ """ #???????????? | | "" # # """ """ #???????????? | | ??# # """ """ #???????????? | | ???# # !#???????????? | | ???# #########+####?###???????? | | ???# #??????# #?? #???????? | | ???# ######## # !#???????? | | ???# + !! #???????? | | ???########/######## # !! #???????? | | ????# [ # # #???????? | | ????# """""" + + /#???????? | | ????# """""" ###########???????? | | ????# """""" #?????????????????? | | ????# = """""" #?????????????????? | | ????# = #?????????????????? | +----------------------------------------------------+ Best States ------------- Heat Dissipation 48 Energy Generation 31 Energy Capacity 520 Matter Stores 300 Matter Capacity 300 Sight Range 16 Terrain Scan Density 10 Additional Mass Support 6 Armor Coverage 150 Evasion (%) 63 Targeting Accuracy 8 Particle Charging 15 Item Schematics ----------------- None Robot Schematics ------------------ None Fabricated ------------ Nothing Alien Tech Used ----------------- None Achievements -------------- None Challenges ------------ None Game ------ Seed RecyclingLinearActivator Manual? 0 Play Time 00:34:04 Cumulative 12.7 hours Start 2020.05.14 @ 22:26:59 End 2020.05.14 @ 22:59:53 Sessions 1 Manual Loads 0 Difficulty Rogue Special Mode None Game No. 30 Rogue 30 Adventurer 0 Explorer 0 Win Type - Total 0 Types 0/0/0/0/0/0/0 Lore% 17 Gallery% 20 Achievement% 19 Wizard Run 0 Options --------- ASCII 0 Keyboard 0 Movement Mouse Keybinds 0 Fullscreen 2 Font 18/Terminus Map View 76x50 Tactical HUD 1 Map Filters NONE Filters NONE Steam 1 RUN: 98befed4-79b4-4766-9083-d756bb429278